Cogmind - Beta 16 @@@ ROGUE MODE // 2025.12.08 @ 23:43:03 Player: omewwes Result: Self-destructed Performance ------------- Evolutions (4) 2000 Regions Visited (13) 2600 Robots Destroyed (107) 535 Value Destroyed (2226) 2226 Prototype IDs (25) 500 Alien Tech Used (0) 0 Bonus (300) 300 TOTAL SCORE: 8161 Bonus ------- Aligned with FarCom 300 Cogmind --------- Core Integrity 332/850 Matter 298/300 Energy 100/100 System Corruption 40% Temperature Cool (0) Movement Core (100) Ox1 Location -6/Factory Parts ------- > --- POWER (2) -------- (None) > --- PROPULSION (3) --- (None) > --- UTILITY (8) ------ IFF Parser Force Booster > --- WEAPON (2) ------- (None) > --- INVENTORY (5) ---- Force Booster Transmission Jammer Peak State ------------ > --- POWER ------------ Fission Core Light Fission Core > --- PROPULSION ------- Improved Titanium Leg Armored Leg Armored Leg > --- UTILITY ---------- Medium Storage Unit Improved Trap Scanner Improved Melee Analysis Suite Advanced Melee Analysis Suite Microactuators Force Booster Reaction Control System Centrium Light Armor Plating > --- WEAPON ----------- Axe Power Sword > --- INVENTORY -------- Light Angular Momentum Engine Carbon-fiber Leg Advanced Terrain Scan Processor Force Booster Stasis Canceller Reaction Control System Reaction Control System Improved Light Armor Plating CPS Tube Mace [Rating: 70] Favorites ----------- Power Fission Core Engine Heavy Ion Engine Power Core Fission Core Propulsion Aluminum Leg Treads Light Treads Leg Aluminum Leg Wheel Compact Wheel Utility Small Storage Unit Device Reaction Control System Storage Small Storage Unit Processor Improved Melee Analysis Suite Protection Medium Armor Plating Weapon Mace Energy Gun EM Pulse Gun Launcher Rocket Launcher Special Weapon CPS Tube Impact Weapon Mace Slashing Weapon Power Sword Build | -11 -10 -10 -9 -9 -9 -8 -8 -8 -8 -8 -6 -6 -6 ------- Run | Yrd Mat Min Mat Min Exi Min Mat Sto Rec Scr Fac Was Fac Slots Evolved 8 | . . . 2 . . . 2 . . . 4 . . Power 1 | . . . . . . . . . . . 1 . . Propulsion 1 | . . . 1 . . . . . . . . . . Utility 6 | . . . 1 . . . 2 . . . 3 . . Weapon . | . . . . . . . . . . . . . . Parts Attached 102 | 9 6 2 25 7 . 2 3 7 2 4 20 . 15 Power 12 | 1 . 1 4 . . . . 1 . 1 2 . 2 Engine 7 | 1 . . 3 . . . . 1 . . . . 2 Core 5 | . . 1 1 . . . . . . 1 2 . . Reactor . | . . . . . . . . . . . . . . Propulsion 26 | 4 1 . 7 2 . . . 2 1 2 2 . 5 Treads 2 | 2 . . . . . . . . . . . . . Leg 19 | 2 . . 7 . . . . 2 1 2 2 . 3 Wheel 5 | . 1 . . 2 . . . . . . . . 2 Hover . | . . . . . . . . . . . . . . Flight . | . . . . . . . . . . . . . . Utility 47 | 2 1 1 9 4 . 2 2 4 1 . 13 . 8 Device 26 | 1 1 1 5 . . 1 . 1 . . 8 . 8 Storage 4 | 1 . . . 2 . . . 1 . . . . . Processor 3 | . . . . . . . . . . . 3 . . Hackware . | . . . . . . . . . . . . . . Protection 14 | . . . 4 2 . 1 2 2 1 . 2 . . Artifact . | . . . . . . . . . . . . . . Weapon 17 | 2 4 . 5 1 . . 1 . . 1 3 . . Energy Gun 2 | 2 . . . . . . . . . . . . . Energy Cannon . | . . . . . . . . . . . . . . Ballistic Gun . | . . . . . . . . . . . . . . Ballistic Cannon . | . . . . . . . . . . . . . . Launcher 2 | . . . 1 . . . 1 . . . . . . Special Weapon 2 | . . . . . . . . . . . 2 . . Impact Weapon 9 | . 4 . 4 1 . . . . . . . . . Slashing Weapon 2 | . . . . . . . . . . 1 1 . . Piercing Weapon . | . . . . . . . . . . . . . . Special Melee Weapon . | . . . . . . . . . . . . . . Unidentified Prototypes 2 | . . . 1 . . . . . 1 . . . . Parts Lost 51 | . . 3 9 6 . 2 6 1 . . 1 6 17 Power 8 | . . 1 2 . . . 1 1 . . . . 3 Propulsion 14 | . . . 2 4 . 1 2 . . . . 1 4 Utility 26 | . . 2 5 2 . 1 3 . . . . 4 9 Weapon 3 | . . . . . . . . . . . 1 1 1 Highest Loss Streak 8 | . . 2 3 6 . 2 5 1 . . 1 6 8 To Critical Strikes . | . . . . . . . . . . . . . . Average Backups 6 | 1 6 5 7 5 5 6 6 6 10 9 9 5 2 Power . | . . . . 1 1 1 1 . . . . 1 . Propulsion . | 1 2 . 1 . . . . . . . 1 . . Utility 3 | . . 1 1 . . . . 4 9 7 4 4 2 Weapon 2 | . 2 3 2 3 4 5 4 1 1 1 1 . . Tool/Special . | . . . . . . . . . . . . . . Unused Backups 18 | . 1 . 3 . . . 2 3 . 5 3 . 1 Power 1 | . . . 1 . . . . . . . . . . Propulsion . | . . . . . . . . . . . . . . Utility 14 | . . . 1 . . . 1 3 . 5 3 . 1 Weapon 3 | . 1 . 1 . . . 1 . . . . . . Tool/Special . | . . . . . . . . . . . . . . Average Slot Usage (%) 89 | . 99 95 97 96 100 88 72 71 87 90 93 74 71 Engine 6 | . 14 2 9 11 11 11 8 2 9 1 . . 4 Core 4 | . . 11 1 . . . . 4 . 7 11 9 3 Treads 2 | . 27 . . . . . . . . . . . . Leg 18 | . . 27 32 15 11 5 . 15 24 27 20 13 8 Wheel 3 | . . . . 14 22 22 17 . . . . . 5 Device 14 | . 14 10 12 2 . 1 9 15 18 18 25 19 26 Storage 9 | . 14 14 11 11 11 11 8 7 9 9 5 . . Processor 1 | . . . . . . . . . . . 3 13 9 Protection 8 | . . . 7 19 22 14 11 8 9 9 11 6 3 Impact Weapon 16 | . 26 28 21 19 22 21 17 18 18 9 2 6 5 Slashing Weapon 1 | . . . . . . . . . . 8 8 3 . Peak Build Rating 70 | 9 10 15 19 17 16 20 26 30 38 48 70 69 57 Average Rating 28 | 5 9 12 16 15 16 16 22 26 31 46 64 48 41 On Entrance 23 | . 9 10 15 17 16 16 20 16 30 38 48 69 29 Avg Prop Armor Cover (%) 5 | 7 16 16 . 4 5 5 . . . . . . 5 Naked Turns . | . . . . . . . . . . . . . . Heaviest Build 51 | 13 13 19 32 33 31 32 30 29 29 33 51 36 37 Greatest Support 61 | 40 40 20 39 32 32 32 32 30 43 51 61 48 36 Greatest Overweight (x) 5 | . . . 1 3 . . 5 2 . . . 1 4 Average Overweight (x) . | . . . . . . . . . . . . . . Largest Inventory Capacity 10 | 8 8 8 8 8 8 8 8 10 10 10 10 5 5 Average Capacity 8 | 7 8 8 8 8 8 8 7 9 10 10 9 5 5 Most Carried 10 | 2 8 8 8 8 6 7 8 10 10 10 10 5 5 Average Carried 6 | 1 6 5 7 5 5 6 6 6 10 9 9 5 2 Final Capacity 10 | 8 8 8 8 8 8 8 5 10 10 10 5 5 5 Final Carried 10 | 2 8 7 8 5 6 7 5 10 10 10 5 5 2 Scrap Suit Usage (%) 3 | . . . . . . 16 43 . . . . . . Parts Cannibalized 2 | . . . . . . . 2 . . . . . . Class Distribution -------------------- 86% | Mutant 4% | Gladiator 3% | Scavenger-Gladiator Dominant Class ---------------- Mutant | -10/Materials Mutant | -10/Mines Mutant | -9/Materials Mutant | -9/Mines Mutant | -9/Exiles Mutant | -8/Mines Mutant | -8/Materials Mutant | -8/Storage Mutant | -8/Recycling Mutant | -8/Scraptown Scavenger-Gladiator | -6/Factory Gladiator | -6/Waste Mutant | -6/Factory Resources | -11 -10 -10 -9 -9 -9 -8 -8 -8 -8 -8 -6 -6 -6 ----------- Run | Yrd Mat Min Mat Min Exi Min Mat Sto Rec Scr Fac Was Fac Matter Collected 1934 | 192 178 50 457 115 86 18 84 155 66 . 244 . 289 Remotely . | . . . . . . . . . . . . . . Salvage Created 3419 | 14 499 182 865 73 . 57 166 254 450 . 448 . 411 Parts 139 | 3 13 7 39 6 . 6 7 14 5 . 26 . 13 Haulers Intercepted 9 | . 1 . 4 . . . 1 2 . . 1 . . Recyclers Shooed 4 | . . . . 1 . . . . 3 . . . . Parts Field Recycled . | . . . . . . . . . . . . . . Retrieved Matter . | . . . . . . . . . . . . . . Parts Self-Destructed . | . . . . . . . . . . . . . . Prevented . | . . . . . . . . . . . . . . Parts Restored . | . . . . . . . . . . . . . . Kills | -11 -10 -10 -9 -9 -9 -8 -8 -8 -8 -8 -6 -6 -6 ------- Run | Yrd Mat Min Mat Min Exi Min Mat Sto Rec Scr Fac Was Fac Combat Hostiles Destroyed 79 | . 9 5 21 13 . 7 7 2 1 . 8 . 6 Melee 34 | . 5 2 9 2 . 2 . 2 . . 8 . 4 AOE 26 | . . . 5 11 . 3 7 . . . . . . Classes Destroyed 14 | 1 6 1 2 1 . . . 1 . . 2 . . Worker 5 | . . 1 1 . . . 1 1 . . . . 1 Builder 4 | . 1 1 1 1 . . . . . . . . . Tunneler 6 | 1 1 2 . 2 . . . . . . . . . Hauler 9 | . 1 . 4 . . . 1 2 . . 1 . . Recycler 9 | . 1 . . . . . 1 . 6 . . . 1 Mechanic 1 | . . . . . . . . 1 . . . . . Operator 4 | . 2 . 1 . . . . 1 . . . . . Swarmer 33 | . 3 3 4 3 . 7 7 . . . 3 . 3 Grunt 20 | . 6 2 8 . . . . . . . 2 . 2 Brawler 3 | . . . 3 . . . . . . . . . . Duelist 1 | . . . . . . . . . . . 1 . . Sentry 11 | . . . 6 . . . . 2 1 . 1 . 1 Programmer 1 | . . . . . . . . . . . 1 . . Assembled 10 | . . . . 10 . . . . . . . . . Best Kill Streak 13 | 1 4 3 6 13 . 4 5 3 5 . 3 . 4 Combat Bots Only 12 | . 3 3 5 12 . 4 4 1 1 . 3 . 3 Max Kills in Single Turn 4 | 1 1 1 3 2 . 3 4 1 1 . 1 . 1 Gunslinging . | . . . . . . . . . . . . . . Exploded 4 | . . . 3 2 . 3 4 . . . . . . Melee 1 | . 1 1 1 1 . 1 . 1 . . 1 . 1 Uniques/NPCs Destroyed . | . . . . . . . . . . . . . . Combat | -11 -10 -10 -9 -9 -9 -8 -8 -8 -8 -8 -6 -6 -6 -------- Run | Yrd Mat Min Mat Min Exi Min Mat Sto Rec Scr Fac Was Fac Hostile Shots Fired 557 | . 33 24 129 74 . 16 19 20 13 . 61 5 163 Missed 179 | . 12 6 43 22 . 4 4 7 6 . 26 2 47 Hits 378 | . 21 18 86 52 . 12 15 13 7 . 35 3 116 Melee 27 | . . . 8 1 . . . . . . 2 3 13 Projectile 351 | . 21 18 78 51 . 12 15 13 7 . 33 . 103 AOE 20 | . . . . 13 . . . . . . . . 7 Critical Strikes 15 | . . 1 4 1 . . 2 . . . . 1 6 Actively Blocked 2 | . . . . . . . 1 . . . . 1 . Part Disruptions 1 | . . . . . . . . . 1 . . . . Damage Taken 6447 | . 225 184 1218 1024 . 99 705 202 195 . 571 126 1898 Core 1159 | . 67 40 165 181 . 17 96 42 33 . 115 1 402 Absorbed by Shields 16 | . . . 4 . . . . 12 . . . . . Redirected to Shielding 159 | . . . . . . . 40 . . . 63 56 . Ignored by Resistances 20 | . . . . . . . . . . . . . 20 Regen/Repaired (Parts) 20 | . . . . . . . 20 . . . . . . Core Remaining (%) 58 | 100 . 57 . . . 9 . . . 68 . . . Volleys Fired 21 | 1 . . 3 11 . 1 4 . . . 1 . . Largest 2 | 2 . . 1 1 . 1 1 . . . 1 . . Hottest 80 | 80 . . 33 33 . 33 33 . . . . . . Shots Fired 22 | 2 . . 3 11 . 1 4 . . . 1 . . Gun 2 | 2 . . . . . . . . . . . . . Cannon . | . . . . . . . . . . . . . . Launcher 19 | . . . 3 11 . 1 4 . . . . . . Special 1 | . . . . . . . . . . . 1 . . Kinetic . | . . . . . . . . . . . . . . Thermal . | . . . . . . . . . . . . . . Explosive 19 | . . . 3 11 . 1 4 . . . . . . Electromagnetic 2 | 2 . . . . . . . . . . . . . Robot Hit Streak 5 | 1 . . 1 5 . . 2 . . . 3 . . Robot Miss Streak 2 | . . . 1 2 . . . . . . . . . Penetration Max . | . . . . . . . . . . . . . . Secondary Targets . | . . . . . . . . . . . . . . Shots Hit Robots 262 | 1 30 13 88 14 . 6 6 17 24 . 28 . 35 Core Hits 83 | 1 7 3 16 21 . 4 7 4 3 . 11 . 6 Critical Kills 12 | . 3 . 3 1 . . . 2 . . 1 . 2 Critical Parts Destroyed 26 | . 7 1 11 . . . 1 . 2 . . . 4 Critical Strikes 47 | . 10 1 18 2 . . 1 2 2 . 4 . 7 Smash 44 | . 10 1 18 2 . . 1 2 2 . 1 . 7 Sever 3 | . . . . . . . . . . . 3 . . Melee Attacks 316 | . 40 16 97 12 . 12 6 18 25 . 38 . 52 Impact 281 | . 40 16 97 12 . 12 6 18 25 . 3 . 52 Slashing 35 | . . . . . . . . . . . 35 . . Piercing . | . . . . . . . . . . . . . . Sneak Attacks 42 | . 7 4 7 2 . . 4 6 7 . 2 . 3 Combat Hostiles 1 | . . . . . . . . . . . 1 . . Follow-up Attacks 35 | . 5 2 16 1 . 2 . 2 4 . 3 . . Damage Inflicted 10919 | 15 1030 589 2835 1296 . 340 680 742 839 . 1231 . 1322 Guns 15 | 15 . . . . . . . . . . . . . Cannons . | . . . . . . . . . . . . . . Explosions 1846 | . . . 301 986 . 148 411 . . . . . . Melee 9058 | . 1030 589 2534 310 . 192 269 742 839 . 1231 . 1322 Ramming . | . . . . . . . . . . . . . . Kinetic . | . . . . . . . . . . . . . . Thermal . | . . . . . . . . . . . . . . Explosive 1846 | . . . 301 986 . 148 411 . . . . . . Electromagnetic 15 | 15 . . . . . . . . . . . . . Impact 7911 | . 1030 589 2534 310 . 192 269 742 839 . 84 . 1322 Slashing 1147 | . . . . . . . . . . . 1147 . . Piercing . | . . . . . . . . . . . . . . Highest Corruption 40 | . . . 1 1 1 1 2 2 4 . 1 21 40 Average Corruption 6 | . . . 1 1 1 1 2 2 3 . 1 14 27 Corruption Purged . | . . . . . . . . . . . . . . Corruption Blocked . | . . . . . . . . . . . . . . Effects 87 | . . . 4 1 5 2 1 7 21 . 5 9 32 Message Errors 22 | . . . . . 2 . . 2 5 . 2 2 9 Matter Fused 21 | . . . 2 . . 1 . 3 7 . 1 2 5 Heat Flow Errors 10 | . . . 1 1 2 . 1 . 4 . . . 1 Energy Discharges 8 | . . . . . . 1 . . 2 . 1 1 3 Parts Rejected 7 | . . . . . . . . . . . . 1 6 Data Loss (minor) 9 | . . . 1 . . . . . 2 . 1 1 4 Data Loss (major) 5 | . . . . . . . . 2 1 . . 1 1 Alerts 1 | . . . . . 1 . . . . . . . . Misdirections 4 | . . . . . . . . . . . . 1 3 Overload Shots . | . . . . . . . . . . . . . . Overflow Damage 1999 | . 391 211 496 120 . 66 186 119 143 . 21 . 246 Projectiles . | . . . . . . . . . . . . . . Explosions 96 | . . . 32 55 . . 9 . . . . . . Melee 1903 | . 391 211 464 65 . 66 177 119 143 . 21 . 246 Knockbacks 24 | . 4 3 6 1 . . 1 1 3 . . . 5 Impact 23 | . 4 3 6 1 . . 1 1 3 . . . 4 Kinetic . | . . . . . . . . . . . . . . Secondary 1 | . . . . . . . . . . . . . 1 Self-Inflicted Damage 52 | . . . 52 . . . . . . . . . . Shots 2 | . . . 2 . . . . . . . . . . Rammed . | . . . . . . . . . . . . . . Targets Rammed . | . . . . . . . . . . . . . . Kicked . | . . . . . . . . . . . . . . Crushed . | . . . . . . . . . . . . . . Highest Temperature 196 | 18 . . 191 95 129 . 173 . 196 . 1 . 80 Average Temperature 72 | 12 . . 83 55 62 . 91 . 85 . 1 . 34 Received Heat Transfer 938 | . 96 48 327 . . . . 51 57 . 171 . 188 Siege Activations . | . . . . . . . . . . . . . . Martial Activations . | . . . . . . . . . . . . . . Shielding Activations . | . . . . . . . . . . . . . . Robots Disrupted . | . . . . . . . . . . . . . . Combat Hostiles . | . . . . . . . . . . . . . . Robots Corrupted 41 | . 8 5 11 2 . 2 2 2 6 . . . 3 Combat Hostiles 19 | . 4 3 7 . . 2 . . 1 . . . 2 Parts Fried 51 | . 10 4 11 3 . 1 1 4 11 . . . 6 Impact Corruptions 96 | . 15 11 28 4 . 6 6 6 9 . . . 11 Robots Melted . | . . . . . . . . . . . . . . Combat Hostiles . | . . . . . . . . . . . . . . Parts Melted . | . . . . . . . . . . . . . . Heat Transferred . | . . . . . . . . . . . . . . Parts Sabotaged . | . . . . . . . . . . . . . . Parts Stolen . | . . . . . . . . . . . . . . Parts Stripped . | . . . . . . . . . . . . . . Power Chain Reactions . | . . . . . . . . . . . . . . Alert | -11 -10 -10 -9 -9 -9 -8 -8 -8 -8 -8 -6 -6 -6 ------- Run | Yrd Mat Min Mat Min Exi Min Mat Sto Rec Scr Fac Was Fac Maximum Alert Level 1 | . . . 1 . . . . . . . . . . Low Security (%) 99 | 100 100 100 95 100 . 100 100 100 100 . 100 100 100 Level 1 . | . . . 4 . . . . . . . . . . Level 2 . | . . . . . . . . . . . . . . Level 3 . | . . . . . . . . . . . . . . Level 4 . | . . . . . . . . . . . . . . Level 5 . | . . . . . . . . . . . . . . High Security . | . . . . . . . . . . . . . . Max Security . | . . . . . . . . . . . . . . Peak Influence 223 | 5 80 50 223 107 . 133 116 32 72 . 102 4 49 Initial 47 | . . 8 . 16 . . 47 1 . . . 4 . Average 35 | . 33 6 78 35 . 30 54 6 19 . 47 . 10 Influence Increases 2606 | 5 267 155 686 132 . 223 241 93 231 . 311 . 262 Destroy 0b10 Robot/C 1400 | . 180 100 420 60 . 160 140 40 20 . 160 . 120 Destroy 0b10 Robot/NC 190 | 5 30 20 35 15 . . 15 25 30 . 5 . 10 Destroy Leader 338 | . 42 20 128 10 . 30 22 24 . . 42 . 20 Allied During Kill 8 | . . . . . . 8 . . . . . . . Successful Hack 115 | . . . 51 . . . 4 4 31 . 25 . . Select Force Hacks 150 | . . . . . . . . . 150 . . . . Disable Machine 90 | . . . 30 . . 15 45 . . . . . . Destroy Structure 105 | . . . 22 47 . 10 15 . . . 4 . 7 Lose Combat Pursuer 210 | . 15 15 . . . . . . . . 75 . 105 Influence Decreases 2606 | 5 245 177 644 174 . 100 359 98 231 . 298 13 262 Entered New Map 129 | . . 14 . 26 . . 76 4 . . . 9 . Time Decay 1975 | 5 245 138 404 147 . 70 223 84 231 . 288 . 140 Lost Part 328 | . . 25 90 1 . 10 60 10 . . 10 . 122 Lost Ally 24 | . . . . . . 20 . . . . . 4 . Purge Threat 150 | . . . 150 . . . . . . . . . . Squads Dispatched 14 | . 2 1 5 1 . . . 2 . . 2 . 1 Investigation 3 | . . 1 1 . . . . 1 . . . . . Extermination 3 | . . . . . . . . . . . 2 . 1 Reinforcement 7 | . 2 . 4 . . . . 1 . . . . . Assault 1 | . . . . 1 . . . . . . . . . Garrison . | . . . . . . . . . . . . . . Intercept . | . . . . . . . . . . . . . . Searches Triggered . | . . . . . . . . . . . . . . Construction Impeded . | . . . . . . . . . . . . . . Haulers Reinforced . | . . . . . . . . . . . . . . Active Scanning Responses . | . . . . . . . . . . . . . . Cargo Convoy Interrupts . | . . . . . . . . . . . . . . Stealth | -11 -10 -10 -9 -9 -9 -8 -8 -8 -8 -8 -6 -6 -6 --------- Run | Yrd Mat Min Mat Min Exi Min Mat Sto Rec Scr Fac Was Fac Distress Signals 8 | . 1 . 7 . . . . . . . . . . Communications Jammed . | . . . . . . . . . . . . . . Distress Signals . | . . . . . . . . . . . . . . Times Spotted 154 | . 15 6 42 32 . 7 5 8 3 . 11 6 19 Peak Tracking Total 21 | . 4 3 8 21 . 4 4 3 2 . 4 6 4 Tactical Retreats 13 | . 1 1 . 1 . . . . . . 4 2 4 Traps | -11 -10 -10 -9 -9 -9 -8 -8 -8 -8 -8 -6 -6 -6 ------- Run | Yrd Mat Min Mat Min Exi Min Mat Sto Rec Scr Fac Was Fac Traps Triggered 13 | . 2 . 6 . . . 1 1 . . 1 . 2 Indirectly . | . . . . . . . . . . . . . . Trap Hack Attempts . | . . . . . . . . . . . . . . Triggered . | . . . . . . . . . . . . . . Disarmed 3 | . . . . . . . . 3 . . . . . Reprogrammed . | . . . . . . . . . . . . . . Reused . | . . . . . . . . . . . . . . Traps Extracted . | . . . . . . . . . . . . . . Installed . | . . . . . . . . . . . . . . Triggered . | . . . . . . . . . . . . . . Machines | -11 -10 -10 -9 -9 -9 -8 -8 -8 -8 -8 -6 -6 -6 ---------- Run | Yrd Mat Min Mat Min Exi Min Mat Sto Rec Scr Fac Was Fac Machines Disabled 6 | . . . 2 . . 1 3 . . . . . . Max in Single Turn 2 | . . . 1 . . 1 2 . . . . . . Machines Repaired . | . . . . . . . . . . . . . . Machines Dismantled . | . . . . . . . . . . . . . . Machines Sabotaged . | . . . . . . . . . . . . . . Overloaded Fab Kills . | . . . . . . . . . . . . . . Hacking | -11 -10 -10 -9 -9 -9 -8 -8 -8 -8 -8 -6 -6 -6 --------- Run | Yrd Mat Min Mat Min Exi Min Mat Sto Rec Scr Fac Was Fac Machines Accessed 32 | . 1 1 8 . 2 . 1 2 10 1 3 . 3 Terminals 20 | . 1 . 6 . . . 1 2 5 . 2 . 3 Fabricators . | . . . . . . . . . . . . . . Repair Stations . | . . . . . . . . . . . . . . Recycling Units 6 | . . . . . . . . . 5 . 1 . . Scanalyzers 2 | . . . 2 . . . . . . . . . . Garrison Access . | . . . . . . . . . . . . . . Total Hacks 79 | . 2 1 21 . 2 . 3 8 18 10 9 . 5 Successful 53 | . 1 1 16 . 2 . 1 3 12 10 7 . . Failed 26 | . 1 . 5 . . . 2 5 6 . 2 . 5 Catastrophic 3 | . . . . . . . 1 1 . . . . 1 Database Lockouts . | . . . . . . . . . . . . . . Manual 39 | . 1 . 9 . 1 . 2 4 11 . 9 . 2 Terminals 52 | . 2 . 15 . . . 3 8 12 . 7 . 5 Fabricators . | . . . . . . . . . . . . . . Repair Stations . | . . . . . . . . . . . . . . Recycling Units 8 | . . . . . . . . . 6 . 2 . . Scanalyzers 6 | . . . 6 . . . . . . . . . . Garrison Access . | . . . . . . . . . . . . . . Terminal Hacks 22 | . . 1 4 . 2 . . 2 2 10 1 . . Record 11 | . . . . . 1 . . . . 10 . . . Part Schematic 2 | . . . . . . . . . 2 . . . . Open Door 1 | . . 1 . . . . . . . . . . . Terminal Index 1 | . . . . . . . . . . . 1 . . Unreport Threat 1 | . . . 1 . . . . . . . . . . Disarm Traps 1 | . . . . . . . . 1 . . . . . Transport Status 1 | . . . 1 . . . . . . . . . . Hauler Manifests 1 | . . . 1 . . . . . . . . . . Registered Components 1 | . . . 1 . . . . . . . . . . Zone Layout 1 | . . . . . . . . 1 . . . . . Proto ID Catalog 1 | . . . . . 1 . . . . . . . . Fabricator Hacks . | . . . . . . . . . . . . . . Repair Station Hacks . | . . . . . . . . . . . . . . Recycling Unit Hacks . | . . . . . . . . . . . . . . Scanalyzer 6 | . . . 6 . . . . . . . . . . Retrieve Study 6 | . . . 6 . . . . . . . . . . Garrison Access Hacks . | . . . . . . . . . . . . . . Unauthorized Hacks 25 | . 1 . 6 . . . 1 1 10 . 6 . . Terminals 18 | . 1 . 6 . . . 1 1 5 . 4 . . Track 1 | . 1 . . . . . . . . . . . . Botnet 1 | . . . . . . . . . . . 1 . . Operators 1 | . . . . . . . . . . . 1 . . Skim 15 | . . . 6 . . . 1 1 5 . 2 . . Fabricators . | . . . . . . . . . . . . . . Repair Stations . | . . . . . . . . . . . . . . Recycling Units 7 | . . . . . . . . . 5 . 2 . . Recyclers 1 | . . . . . . . . . . . 1 . . Mask 1 | . . . . . . . . . . . 1 . . Tunnel 5 | . . . . . . . . . 5 . . . . Scanalyzers . | . . . . . . . . . . . . . . Garrison Access . | . . . . . . . . . . . . . . Data Cores Recovered . | . . . . . . . . . . . . . . Used . | . . . . . . . . . . . . . . Hacking Detections 18 | . 1 . 6 . . . 1 2 2 . 3 . 3 Full Trace Events 2 | . . . 1 . . . . . 1 . . . . Feedback Events . | . . . . . . . . . . . . . . Feedback Blocked . | . . . . . . . . . . . . . . Robot Schematics Acquired . | . . . . . . . . . . . . . . Robots Built . | . . . . . . . . . . . . . . Authchips . | . . . . . . . . . . . . . . Time . | . . . . . . . . . . . . . . Total Robot Build Rating . | . . . . . . . . . . . . . . Part Schematics Acquired 2 | . . . . . . . . . 2 . . . . Parts Built . | . . . . . . . . . . . . . . Authchips . | . . . . . . . . . . . . . . Time . | . . . . . . . . . . . . . . Total Part Build Rating . | . . . . . . . . . . . . . . Part Studies Acquired 5 | . . . 5 . . . . . . . . . . Parts Repaired . | . . . . . . . . . . . . . . Time . | . . . . . . . . . . . . . . Parts Recycled . | . . . . . . . . . . . . . . Recycled Matter . | . . . . . . . . . . . . . . Retrieved Matter . | . . . . . . . . . . . . . . Retrieved Components . | . . . . . . . . . . . . . . Parts Scanalyzed . | . . . . . . . . . . . . . . Part Schematics Acquired . | . . . . . . . . . . . . . . Parts Damaged . | . . . . . . . . . . . . . . Bothacking | -11 -10 -10 -9 -9 -9 -8 -8 -8 -8 -8 -6 -6 -6 ------------ Run | Yrd Mat Min Mat Min Exi Min Mat Sto Rec Scr Fac Was Fac Used RIF Installer . | . . . . . . . . . . . . . . Robots Hacked . | . . . . . . . . . . . . . . Non-combat . | . . . . . . . . . . . . . . Combat . | . . . . . . . . . . . . . . Robot Hacks Applied . | . . . . . . . . . . . . . . Relay Couplers Released . | . . . . . . . . . . . . . . Fabnet Peak Effective % . | . . . . . . . . . . . . . . Robots Rewired . | . . . . . . . . . . . . . . Allies Hacked . | . . . . . . . . . . . . . . Hacks Repelled . | . . . . . . . . . . . . . . Allies | -11 -10 -10 -9 -9 -9 -8 -8 -8 -8 -8 -6 -6 -6 -------- Run | Yrd Mat Min Mat Min Exi Min Mat Sto Rec Scr Fac Was Fac Total Allies 2 | . . . . 1 . . . . . . . 1 . Largest Group 1 | . . . . 1 1 1 . . . . . 1 . Highest-Rated Group 31 | . . . . 31 31 31 . . . . . 31 . Highest-Rated Ally 31 | . . . . 31 31 31 . . . . . 31 . Total Orders . | . . . . . . . . . . . . . . Ally Attacks 15 | . . . . . . 13 . . . . . 2 . Total Damage 255 | . . . . . . 215 . . . . . 40 . Kills 1 | . . . . . . 1 . . . . . . . Allies Corrupted . | . . . . . . . . . . . . . . Allies Melted 1 | . . . . . . . . . 1 . . . . Intel | -11 -10 -10 -9 -9 -9 -8 -8 -8 -8 -8 -6 -6 -6 ------- Run | Yrd Mat Min Mat Min Exi Min Mat Sto Rec Scr Fac Was Fac Active Infowar (turns) 2375 | 11 697 352 . . . . . . . . 539 210 566 IFF 15 | . . . . . . . . . . . . . 15 Terrain 269 | 11 35 223 . . . . . . . . . . . Traps 496 | . . . . . . . . . . . 496 . . Seismic 791 | . 662 129 . . . . . . . . . . . T.N.C. 1 | . . . . . . . . . . . 1 . . Jamming 818 | . . . . . . . . . . . 42 210 566 Robot Analysis Total . | . . . . . . . . . . . . . . Derelict Logs Recovered . | . . . . . . . . . . . . . . Drone Launches . | . . . . . . . . . . . . . . Drone Recoveries . | . . . . . . . . . . . . . . Exploration | -11 -10 -10 -9 -9 -9 -8 -8 -8 -8 -8 -6 -6 -6 ------------- Run | Yrd Mat Min Mat Min Exi Min Mat Sto Rec Scr Fac Was Fac Turns Passed 8154 | 90 698 663 1393 384 355 253 480 421 864 873 801 210 669 Spaces Moved 5870 | 54 356 510 979 297 355 211 430 278 661 709 501 167 362 Core 57 | 6 . . . . . . 10 31 . . . . 10 Treads 350 | 32 318 . . . . . . . . . . . . Legs 4015 | 16 . 500 979 59 . . . 247 661 709 501 167 176 Wheels 1448 | . 38 10 . 238 355 211 420 . . . . . 176 Hover . | . . . . . . . . . . . . . . Flight . | . . . . . . . . . . . . . . Fastest Speed 50 | 50 100 100 105 100 100 100 100 120 120 120 120 120 100 Average Speed 116 | 135 153 119 109 105 100 100 103 123 120 121 122 120 116 Slowest Speed 315 | 160 160 120 175 315 100 100 300 150 120 123 123 190 250 Overloaded Moves . | . . . . . . . . . . . . . . Propulsion Burnouts . | . . . . . . . . . . . . . . Robots Hopped . | . . . . . . . . . . . . . . Potential Cave-ins . | . . . . . . . . . . . . . . Cave-ins Triggered . | . . . . . . . . . . . . . . Exploration Rate (%) 52 | 4 65 76 88 56 77 50 33 42 96 51 10 83 7 Regions Visited 13 Branch Regions 7 Pre-discovered Areas 9 | . . 1 2 . 1 . . . 5 . . . . Known Exits Taken 2 | . . . . . . . 1 1 . . . . . Unknown Exits Taken 9 | 1 1 1 1 1 1 1 . . 1 1 . . . Scrap Searched 3 | . . 1 . 1 . 1 . . . . . . . Spaces Dug 23 | . . . 12 . . . . . . . 4 . 7 Terrain Destroyed 124 | . . . 20 66 . 10 17 . . . 4 . 7 Melee 14 | . . . 3 . . . . . . . 4 . 7 Projectile . | . . . . . . . . . . . . . . AOE 110 | . . . 17 66 . 10 17 . . . . . . Terrain Rammed . | . . . . . . . . . . . . . . Walls Destroyed . | . . . . . . . . . . . . . . Machines Disabled . | . . . . . . . . . . . . . . Actions | -11 -10 -10 -9 -9 -9 -8 -8 -8 -8 -8 -6 -6 -6 --------- Run | Yrd Mat Min Mat Min Exi Min Mat Sto Rec Scr Fac Was Fac Total 6637 | 65 446 537 1148 334 355 232 449 329 693 726 635 174 514 Wait 191 | . 35 2 17 3 . 5 . 2 9 . 46 5 67 Move 5858 | 53 355 509 978 296 354 210 429 277 660 708 501 166 362 Hop . | . . . . . . . . . . . . . . Pick Up 51 | . 7 4 9 1 1 . 3 12 . 5 7 . 2 Fast Attach 78 | 9 4 1 20 2 . 2 2 6 2 1 11 3 15 Attach 33 | . . 2 11 4 . . 1 3 . . 4 . 8 Detach 18 | 2 2 . 4 . . 1 . 2 . . 3 . 4 Swap 48 | . 4 2 14 4 . 2 4 1 . 3 13 . 1 Drop 61 | . 5 3 14 2 . 1 1 7 1 9 15 . 3 Fire 21 | 1 . . 3 11 . 1 4 . . . 1 . . Melee 274 | . 34 14 78 11 . 10 5 15 21 . 34 . 52 Ram . | . . . . . . . . . . . . . . Kick . | . . . . . . . . . . . . . . Crush . | . . . . . . . . . . . . . . Escape Stasis 4 | . . . . . . . . 4 . . . . . Rewire . | . . . . . . . . . . . . . . Trap . | . . . . . . . . . . . . . . Miscellaneous . | . . . . . . . . . . . . . . Route ------- -11/Scrapyard -10/Materials (discovered 2 exits: *Mat / *Min) -10/Mines -9/Materials (discovered 5 exits: *Mat x3 / [*Min x2]) -9/Mines (discovered 2 exits: *Mat / *Exi) -9/Exiles -8/Mines -8/Materials (discovered 3 exits: *Fac x2 / *Sto) -8/Storage -8/Recycling (discovered 2 exits: *Fac / *Scr) -8/Scraptown -6/Factory -6/Waste -6/Factory History --------- Turn | Location | Event 2 | -11/Scrapyard | Met Revision 17 3 | -11/Scrapyard | Discovered new exit (range 15) 91 | -11/Scrapyard | Entered Materials 300 | -10/Materials | Build established: Mutant 469 | -10/Materials | Discovered new exit (range 5) 560 | -10/Materials | Discovered new exit (range 12) 789 | -10/Materials | Entered Mines 823 | -10/Mines | Learned location of Storage (-8) 907 | -10/Mines | Discovered new exit (range 8) 992 | -10/Mines | Found a damaged Exp. Sensor Array with a note attached 995 | -10/Mines | Found Prototype Device 1329 | -10/Mines | Met a Derelict shopkeep closing up shop 1452 | -10/Mines | Entered Materials 1452 | -9/Materials | Evolved 2 slots: Propulsion x1, Utility x1 1606 | -9/Materials | Discovered new exit (range 16) 1738 | -9/Materials | Discovered new exit (range 3) 1801 | -9/Materials | Discovered new exit (range 15) 2159 | -9/Materials | Discovered new exit (range 3) 2274 | -9/Materials | Lost 3 parts (1p1n1u) 2487 | -9/Materials | Discovered new exit (range 5) 2709 | -9/Materials | Learned Storage trap positions 2748 | -9/Materials | Learned location of 2 exits from Materials 2777 | -9/Materials | Learned 2 Storage zone layouts 2800 | -9/Materials | Loaded intel: 2 recycling unit locations 2807 | -9/Materials | Learned location of Zion (-7) 2845 | -9/Materials | Entered Mines 2873 | -9/Mines | Assembled infested the area 2916 | -9/Mines | Core integrity fell below 50% 2949 | -9/Mines | Lost 6 parts (4n2u) 2950 | -9/Mines | Core integrity fell below 20% 2974 | -9/Mines | Destroyed 12 combat bots 3034 | -9/Mines | Discovered new exit (range 7) 3035 | -9/Mines | Met a Derelict testing a Signal Generator 3160 | -9/Mines | Received a Rocket Launcher from a helpful Derelict 3221 | -9/Mines | Deemed a non-threat by the Exiles lab entrance 3222 | -9/Mines | Discovered new exit (range 5) 3229 | -9/Mines | Entered Exiles 3229 | -9/Exiles | Accompanied by 1 ally 3253 | -9/Exiles | Met 8R-AWN 3271 | -9/Exiles | Met EX-HEX 3310 | -9/Exiles | Met EX-DEC 3363 | -9/Exiles | Visited The Gauntlet 3424 | -9/Exiles | Met EX-BIN 3440 | -9/Exiles | Aligned with FarCom system 3441 | -9/Exiles | Given EX-Vault access code 3466 | -9/Exiles | Opened EX-Vault 3474 | -9/Exiles | Found Gui. Plasma Cannon 3493 | -9/Exiles | Warned to stay clear of 0b10 Research branches 3575 | -9/Exiles | Discovered new exit (range 10) 3584 | -9/Exiles | Left Exiles lab with Gui. Plasma Cannon 3584 | -9/Exiles | Entered Mines 3584 | -8/Mines | Accompanied by 1 ally 3793 | -8/Mines | Found a Scrap Suit stashed away for nefarious purposes 3795 | -8/Mines | Found Scrap Suit 3814 | -8/Mines | Discovered new exit (range 8) 3837 | -8/Mines | Entered Materials 3837 | -8/Materials | Evolved 2 slots: Utility x2 3838 | -8/Materials | Identified exit to Factory 3838 | -8/Materials | Identified exit to Storage 4006 | -8/Materials | Discovered exit to Factory (range 15) 4317 | -8/Materials | Entered Storage 4318 | -8/Storage | Identified exit to Recycling 4319 | -8/Storage | Loaded intel: 19 trap records 4327 | -8/Storage | Met 01-MTF 4345 | -8/Storage | Lost 5 parts (1p2n2u) 4738 | -8/Storage | Entered Recycling 4738 | -8/Recycling | Accompanied by 1 ally (01-MTF) 5185 | -8/Recycling | Discovered new exit (range 7) 5219 | -8/Recycling | Scanned before Scraplab entrance 5590 | -8/Recycling | Entered Scraplab 5600 | -8/Recycling | Discovered new exit (range 2) 5602 | -8/Recycling | Entered Scraptown 5602 | -8/Scraptown | System corruption cleaned by C-Scrubber 5781 | -8/Scraptown | Turned away by UFD registrar 5792 | -8/Scraptown | Visited IN-MT5's Study 5826 | -8/Scraptown | Visited CPS Storage 5861 | -8/Scraptown | Visited Spacefarers 5898 | -8/Scraptown | Visited Cyclists 5931 | -8/Scraptown | Heard Great Nut preacher, LISTEN AND RECITE! 6342 | -8/Scraptown | Visited Assassins FH 6469 | -8/Scraptown | Discovered new exit (range 5) 6475 | -8/Scraptown | Entered Factory 6475 | -6/Factory | Evolved 4 slots: Power x1, Utility x3 6844 | -6/Factory | Attached CPS modules to L-41 Fighter. 7227 | -6/Factory | Build established: Scavenger-Gladiator 7256 | -6/Factory | Discovered new exit (range 7) 7276 | -6/Factory | Sucked down chute 7276 | -6/Factory | Entered Waste 7277 | -6/Waste | Met a frightened Derelict 7287 | -6/Waste | Spotted C-40 Crusher 7291 | -6/Waste | EMP discharged 7291 | -6/Waste | System corruption reached 10% 7303 | -6/Waste | Spotted C-40 Crusher 7362 | -6/Waste | Crushed by Compactor (1 part destroyed, 1 dropped) 7365 | -6/Waste | Crushed by Compactor (1 part destroyed, 2 dropped) 7376 | -6/Waste | Spotted C-40 Crusher 7386 | -6/Waste | Spotted C-40 Crusher 7391 | -6/Waste | EMP discharged 7391 | -6/Waste | Spotted C-40 Crusher 7393 | -6/Waste | Crushed by Compactor (1 part destroyed, 1 dropped) 7395 | -6/Waste | Spotted C-40 Crusher 7424 | -6/Waste | Lost 6 parts (1n4u1w) 7471 | -6/Waste | Discovered new exit (range 12) 7486 | -6/Waste | Entered Factory 7754 | -6/Factory | Build established: Mutant 7918 | -6/Factory | System corruption reached 30% 7995 | -6/Factory | Lost 8 parts (2p1n5u) 8052 | -6/Factory | Core integrity fell below 50% 8073 | -6/Factory | Lost 4 parts (1p2n1u) 8140 | -6/Factory | Assembled infested ambush trap array 8155 | -6/Factory | Self-destructed Last Messages --------------- 08143_ Power Amplifier destroyed. 08143_ Mace+ destroyed. 08143_ as-97005 destroyed. 08143_ as-03143 destroyed. 08143_ Assembly Bed disabled. 08144_ U-05 Engineer destroyed. 08145_ U-05 Engineer lays Concrete. 08145_ as-61522 destroyed. 08145_ K-01 Serf collects debris. 08146_ U-05 Engineer lays Concrete. 08148_ K-01 Serf collects debris. 08148_ Transmission Jammer destroyed. 08148_ Matter Pump disabled. 08148_ K-01 Serf destroyed. 08151_ U-05 Engineer lays Concrete. 08151_ Matter Pump disabled. 08152_ U-05 Engineer lays Concrete. 08152_ U-05 Engineer destroyed. 08153_ Carbon-fiber Leg destroyed. 08154_ System corrupted: Force Booster rejected. Map ----- +----------------------------------------------------+ | ?????????????????????????????????????????????????? | | ?????????????????????????????????????????????????? | | ?????????????????????????????????????????????????? | | ####?????????????????????????????????????????????? | | ?????????????????????????????????????????????? | | "????????????????????????????????????????????? | | "????????????????????????????????????????????? | | ""???????????????????????????????????????????? | | ""???????????????????????????????????????????? | | ? ????????#???????????????????????????????? | | """? #??? ???????????????????????????????? | | ] """" #???"G"" ???????????????????????????????? | | """" #?? " " ???????????????????????????????? | | """" #?? ???????????????????????????????? | | #?? " ???????????????????????????????? | | """" #?? "% #??????????????????????????????? | | " """" #??? #??????????????????????????????? | | T """" #?? ??????????????????????????????? | | " """" #? """" ??????????????????????????????? | | % ## """ d ?????????????????????????????? | | #+#####+### """" ########+#####???????????????? | | %!%[ # """" d R ????????????????? | | = ! # """ g ????????????????? | | # """" A """ ""????????????????? | | # """ """???????????????? | | # @ """ """???????????????? | | ##### # | ???????????? | | ?# ####### = """ """ ""????????????? | | ?# % "" """ """ """???????????? | | # """ """ """ """ ""????????? | | "" # ???????? | | "" + ???????? | | "" # ???????? | | "" # #####+######+#########""??????????? | | "" ?# ## # #?????????????? | | ?# ## + """ """ #?????????????? | | ??# """" ## # """ """ #?????????????? | | ##??# """" ## % # """ """ #?????????????? | | ##### """" ## """""" # #?????????????? | | ] # """" ## """""" # "" "" #?????????????? | | # """" ##!"""""" # ""R"" #?????????????? | | "" # """" ## """""" # """"???????????????? | | # """" ## ???????#########???????????????? | | "" # #####################?????????????? | | + +?????????????? | | "" # ##########################?????????????? | | # # #?????????????????????????? | | "" # # ! #?????????????????????????? | | # # ! #?????????????????????????? | | # # #?????????????????????????? | +----------------------------------------------------+ Best States ------------- Heat Dissipation 37 Energy Generation 31 Energy Capacity 370 Matter Stores 300 Matter Capacity 300 Sight Range 16 Terrain Scan Range 16 Terrain Scan Density 10 Jamming Range 12 Power Amplification 20 Additional Mass Support 9 Armor Coverage 600 Resistance: EM 25 Power Shielding 66 Utility Shielding 66 Melee Speed Boost 20 Evasion (%) 63 Melee Accuracy 14 Recoil Reduction 2 Force Boost 20 Authchip Count 3 Item Schematics ----------------- Reaction Control System | -8/Recycling | Hacked Gauss Rifle | -8/Recycling | Hacked Robot Schematics ------------------ None Fabricated ------------ Nothing Repaired ---------- Nothing Studied --------- Aluminum Leg | -9/Materials | Hacked Mace | -9/Materials | Hacked Rocket Launcher | -9/Materials | Hacked Lgt. Nuclear Core | -9/Materials | Hacked Deuterium Engine | -9/Materials | Hacked Alien Tech Used ----------------- None Achievements -------------- Frienemies Challenges ------------ None Game ------ Seed ReinforcedTransportTendrils Manual? 0 Play Time 00:58:43 Cumulative 141.2 hours Start 2025.12.08 @ 14:23:29 End 2025.12.08 @ 23:43:03 Sessions 5 Manual Loads 0 Difficulty Rogue Special Mode None Game No. 113 Rogue 113 Adventurer 0 Explorer 0 Win Type - Total 1 Types 1/0/0/0/0/0/0/0/0/0 Lore% 65 Gallery% 66 Achievement% 55 Wizard Run 0 Options --------- Layout 1 ASCII 0 Keyboard 1 Movement Vi Keybinds 0 Fullscreen 1 Font 24/Terminus Map View 50x35 Zoom Use 0% Tactical HUD 1 Map Filters NONE Filters NONE Steam 1 RUN: d15794b3-3f63-49bc-ae74-da93c4f83ebc